bitfinex/quotes_SOLUSD_20240918
["timestamp","ask_amount","ask_price","bid_price","bid_amount"]
[1726680132331,4.0,128.5,128.49,31.19488885]
[1726680132505,4.0,128.5,128.49,27.2394]
[1726680135303,4.0,128.5,128.47,7.7836]
[1726680135905,31.7825,128.5,128.46,27.2443]
[1726680136110,31.7825,128.5,128.43,42.3113]
[1726680136111,7.7828,128.49,128.43,42.3113]
[1726680136326,24.0,128.5,128.43,42.3113]
[1726680136639,7.7833,128.48,128.44,7.7856]
[1726680136826,27.7839,128.47,128.43,27.251]
[1726680137014,27.7839,128.47,128.4,19.4694]
[1726680137015,0.12549,128.47,128.4,19.4694]
[1726680137211,7.7857,128.44,128.4,19.4694]
[1726680137423,20.0,128.43,128.4,19.4694]
[1726680138107,7.7862,128.44,128.4,19.4694]
[1726680138303,20.0,128.43,128.4,27.2574]
[1726680138526,20.0,128.43,128.41,7.7872]
[1726680138729,20.0,128.45,128.41,7.7872]
[1726680139245,20.0,128.45,128.42,7.7868]
[1726680139527,13.8817,128.48,128.43,7.7863]
[1726680140035,7.7842,128.47,128.42,27.2533]
[1726680140241,7.7846,128.46,128.42,27.2533]
[1726680140414,7.7846,128.46,128.42,19.4665]
[1726680141325,7.7846,128.46,128.42,27.2532]
[1726680141632,7.784,128.47,128.42,27.2532]
[1726680141854,27.784,128.47,128.43,7.7862]
[1726680142006,20.0,128.47,128.43,7.7862]
[1726680142916,27.7844,128.47,128.42,27.2533]
[1726680145043,7.7846,128.46,128.42,27.2533]
[1726680145229,7.7846,128.46,128.42,19.4665]
[1726680145417,0.25098,128.45,128.39,19.471]
[1726680146042,7.7863,128.43,128.39,27.2593]
[1726680146225,20.0,128.43,128.39,27.2593]
[1726680146617,20.0,128.43,128.4,7.7881]
[1726680147337,20.0,128.43,128.39,27.2595]
[1726680148808,20.0,128.43,128.4,7.7877]
[1726680149312,0.37647,128.45,128.39,19.471]
[1726680149534,20.0,128.44,128.39,19.471]
[1726680150533,7.7865,128.43,128.39,27.2597]
[1726680151233,7.7869,128.42,128.38,8.038778]
[1726680152130,15.4139,128.49,128.4,11.18395538]
[1726680152433,15.4139,128.49,128.44,19.4638]
[1726680152434,23.197,128.49,128.44,19.4638]
[1726680152621,23.197,128.49,128.41,22.4221]
[1726680152622,7.7852,128.45,128.41,22.4221]
[1726680152936,15.4139,128.49,128.4,7.788]
[1726680152937,7.7846,128.46,128.4,7.788]
[1726680153116,7.7833,128.48,128.42,7.7868]
[1726680153316,7.7833,128.48,128.4,19.4692]
[1726680153317,7.7833,128.48,128.41,7.7874]
[1726680153516,7.7833,128.48,128.42,7.7869]
[1726680153717,20.0,128.48,128.42,7.7869]
[1726680154022,23.1967,128.49,128.43,7.7861]
[1726680154231,15.4139,128.49,128.43,7.7861]
[1726680154744,4.0,128.5,128.45,7.7849]
[1726680155535,4.0,128.5,128.46,9.34116955]
[1726680156228,4.0,128.5,128.47,7.7838]
[1726680156840,4.0,128.5,128.48,9.33978887]
[1726680157227,4.0,128.5,128.49,7.7827]
[1726680158041,4.0,128.5,128.49,9.33903201]
[1726680159431,4.0,128.5,128.49,9.3390055]
[1726680159741,4.0,128.5,128.49,9.33903305]
[1726680159946,4.0,128.5,128.49,7.7827]
[1726680161035,4.0,128.5,128.48,19.4572]
[1726680162445,4.0,128.5,128.48,27.2404]
[1726680163023,4.0,128.5,128.49,7.7827]
[1726680164728,4.0,128.5,128.49,9.33892551]
[1726680164926,4.0,128.5,128.49,7.7827]
[1726680165744,4.0,128.5,128.48,19.4572]
[1726680165745,4.0,128.5,128.48,27.2402]
[1726680166129,4.0,128.5,128.48,19.4572]
[1726680166446,4.0,128.5,128.45,19.4618]
[1726680166631,4.0,128.5,128.43,22.4038]
[1726680166959,20.0,128.48,128.42,19.4663]
[1726680167245,0.12549,128.47,128.42,27.253]
[1726680167923,20.0,128.48,128.43,7.7858]
[1726680168130,20.25098,128.49,128.43,9.34287107]
[1726680168331,20.12549,128.49,128.44,7.7855]
[1726680168542,20.0,128.49,128.45,7.785]
[1726680169227,24.0,128.5,128.45,7.785]
[1726680170031,24.0,128.5,128.44,19.4637]
[1726680170244,31.7821,128.5,128.44,27.2493]
[1726680173040,7.7827,128.49,128.44,19.4637]
[1726680173752,7.7833,128.48,128.43,7.7862]
[1726680173933,0.12549,128.48,128.41,19.4676]
[1726680174138,20.0,128.47,128.42,7.7867]
[1726680174346,20.0,128.47,128.41,19.4676]
[1726680175448,20.0,128.47,128.43,7.7862]
[1726680176254,20.0,128.49,128.45,7.7847]
[1726680176435,20.0,128.49,128.44,7.7855]
[1726680177730,20.0,128.48,128.44,7.7855]
[1726680178547,20.0,128.49,128.44,7.7855]
[1726680178973,20.0,128.49,128.45,27.2475]
[1726680179457,24.0,128.5,128.45,27.2475]
[1726680179832,11.7823,128.5,128.45,27.2475]
[1726680180037,20.0,128.49,128.45,19.4626]
[1726680181746,20.0,128.49,128.45,27.2476]
[1726680182952,4.0,128.5,128.46,9.34120292]
[1726680183168,4.0,128.5,128.46,7.7844]
[1726680184562,4.0,128.5,128.45,27.2475]
[1726680187358,20.0,128.49,128.45,27.2475]
[1726680187561,20.0,128.49,128.4,60.6654]
[1726680187859,20.0,128.49,128.42,19.4665]
[1726680188362,0.12549,128.49,128.42,19.4665]
[1726680188736,20.0,128.48,128.43,7.7859]
[1726680189454,20.0,128.45,128.4,29.5146]
[1726680189663,27.7853,128.45,128.39,19.4708]
[1726680191182,20.0,128.45,128.4,7.7881]
[1726680193983,20.0,128.45,128.41,7.7875]
[1726680194407,20.0,128.45,128.4,7.7879]
[1726680194682,20.0,128.46,128.41,19.4685]
[1726680194870,20.0,128.46,128.42,1.55719674]
[1726680195077,20.0,128.47,128.42,7.7864]
[1726680195479,27.7839,128.47,128.42,7.7864]
[1726680197792,7.7858,128.44,128.39,7.7886]
[1726680198487,7.7853,128.45,128.39,7.7886]
[1726680198687,7.7853,128.45,128.4,7.788]
[1726680200490,20.0,128.47,128.41,9.34448333]
[1726680200696,27.7841,128.47,128.42,7.7868]
[1726680201398,27.7841,128.47,128.41,7.7873]
[1726680202080,8.03548,128.46,128.41,7.7873]
[1726680202262,27.7853,128.45,128.4,27.2581]
[1726680202463,20.0,128.45,128.4,19.4702]
[1726680202880,0.25098,128.46,128.4,19.4702]
[1726680203073,7.7857,128.44,128.39,7.7885]
[1726680203286,20.0,128.43,128.38,8.038678]
[1726680203971,24.027864,128.44,128.38,0.249578]
[1726680204165,7.7873,128.42,128.38,0.249578]
[1726680204365,20.0,128.41,128.38,0.249578]
[1726680205172,27.7876,128.41,128.38,0.249578]
[1726680205666,27.91259,128.42,128.38,0.249578]
[1726680205868,0.25098,128.41,128.38,0.249578]
[1726680206190,20.0,128.42,128.38,0.249578]
[1726680206368,20.0,128.42,128.38,8.038878]
[1726680207294,20.0,128.43,128.39,7.7886]
[1726680207496,16.59450307,128.47,128.4,21.02720041]
[1726680207796,7.7863,128.43,128.39,22.4923]
[1726680208089,42.82372969,128.47,128.39,22.4923]
[1726680208590,7.7856,128.45,128.39,49.7524]
[1726680208771,20.0,128.44,128.39,49.7524]
[1726680208974,27.7847,128.46,128.41,7.7874]
[1726680209785,20.0,128.46,128.42,7.7867]
[1726680210084,7.784,128.47,128.41,27.2556]
[1726680210286,7.7847,128.46,128.41,27.2556]
[1726680210677,7.7851,128.45,128.4,7.788]
[1726680211076,7.7845,128.46,128.41,7.7875]
[1726680211375,0.12549,128.45,128.41,7.7875]
[1726680211771,20.12549,128.45,128.41,7.7875]
[1726680212370,27.91109,128.45,128.4,27.2582]
[1726680214100,7.91139,128.44,128.39,22.4923]
[1726680214397,7.7859,128.44,128.38,8.038478]
[1726680214889,20.0,128.43,128.38,8.038478]
[1726680215071,7.7864,128.43,128.38,8.038478]
[1726680215890,0.25098,128.45,128.38,8.038478]
[1726680215891,0.12549,128.44,128.39,7.7882]
[1726680216063,20.0,128.43,128.39,7.7882]
[1726680216269,23.902374,128.44,128.38,0.249578]
[1726680216270,20.0,128.41,128.38,0.249578]
[1726680216986,7.7875,128.41,128.38,0.249578]
[1726680217798,7.7882,128.4,128.38,0.249578]
[1726680217975,7.91419,128.39,128.38,0.249578]
[1726680218292,28.16517,128.39,128.38,0.249578]
[1726680221505,20.0,128.39,128.38,0.249578]
[1726680221668,8.13012747,128.41,128.38,0.249578]
[1726680221874,15.2436,128.44,128.38,0.249578]
[1726680221875,7.7865,128.43,128.38,8.038578]
[1726680222192,7.787,128.42,128.38,8.038578]
[1726680222380,7.787,128.42,128.38,0.249578]
[1726680222781,15.2436,128.44,128.38,0.249578]
[1726680222782,7.7877,128.41,128.38,0.249578]
[1726680223496,20.0,128.4,128.38,0.249578]
[1726680225780,20.0,128.43,128.38,0.249578]
[1726680225985,20.0,128.43,128.39,7.7885]
[1726680226893,7.787,128.42,128.38,0.249578]
[1726680227094,27.7879,128.41,128.38,0.249578]
[1726680227279,20.0,128.4,128.38,0.249578]
[1726680231096,20.0,128.43,128.38,0.249578]
[1726680231482,27.7867,128.43,128.38,8.038478]
[1726680234695,8.12796967,128.45,128.39,21.02949137]
[1726680234893,0.37647,128.45,128.39,19.4718]
[1726680235086,7.786,128.44,128.39,27.2604]
[1726680236298,20.0,128.43,128.39,27.2604]
[1726680239999,7.786,128.44,128.38,0.249578]
[1726680240000,20.0,128.44,128.41,19.4686]
[1726680240201,20.0,128.44,128.38,19.721478]
[1726680240396,27.7859,128.44,128.39,7.7886]
[1726680241289,20.0,128.44,128.41,7.7875]
[1726680241508,20.0,128.44,128.4,27.258]
[1726680241811,27.7858,128.44,128.4,27.258]
[1726680242112,7.787,128.42,128.38,0.249578]
[1726680242297,7.7879,128.41,128.38,0.249578]
[1726680242499,0.12549,128.4,128.38,0.249578]
[1726680242792,20.12549,128.39,128.38,0.249578]
[1726680243014,20.12549,128.39,128.34,41.370378]
[1726680243015,0.25098,128.38,128.34,21.892178]
[1726680243212,20.12549,128.37,128.34,0.249578]
[1726680243398,20.0,128.37,128.34,0.249578]
[1726680243796,20.0,128.38,128.34,8.041278]
[1726680244306,20.0,128.38,128.35,7.7908]
[1726680244505,0.12549,128.39,128.34,8.041178]
[1726680245013,20.12549,128.39,128.34,8.041178]
[1726680245183,7.91429,128.39,128.34,8.041178]
[1726680245387,20.0,128.38,128.34,8.041178]
[1726680246492,23.902374,128.37,128.34,0.249578]
[1726680246800,23.902374,128.35,128.34,0.249578]
[1726680247023,43.902374,128.35,128.34,0.249578]
[1726680250417,20.0,128.35,128.34,0.249578]
[1726680256896,8.10383756,128.39,128.34,0.249578]
[1726680257114,29.00887558,128.43,128.34,19.729078]
[1726680257316,7.7885,128.4,128.35,7.7906]
[1726680257818,7.7885,128.4,128.34,19.729078]
[1726680257993,7.7885,128.4,128.35,7.7906]
[1726680258419,20.0,128.39,128.35,7.7906]
[1726680258617,27.7876,128.41,128.36,7.7905]
[1726680258922,8.10714726,128.42,128.38,7.7893]
[1726680259128,15.3094,128.45,128.38,7.7893]
[1726680259418,8.10399192,128.44,128.39,7.7887]
[1726680259721,15.558978,128.48,128.41,7.7875]
[1726680259928,7.7849,128.46,128.41,7.7875]
[1726680260300,8.10213681,128.47,128.4,19.4702]
[1726680260301,7.7851,128.45,128.4,27.2581]
[1726680260995,15.88643681,128.47,128.42,7.7867]
[1726680261404,7.7843,128.47,128.42,7.7867]
[1726680262420,24.027864,128.46,128.42,7.7867]
[1726680262601,24.153354,128.46,128.42,7.7867]
[1726680263005,20.0,128.45,128.42,7.7867]
[1726680264409,20.0,128.45,128.42,23.2324]
[1726680265313,20.0,128.47,128.43,9.34313126]
[1726680265495,20.0,128.47,128.44,7.7856]
[1726680265700,20.0,128.47,128.43,7.7862]
[1726680266623,7.784,128.47,128.43,7.7862]
[1726680266825,7.784,128.47,128.42,34.9129]
[1726680266826,20.0,128.46,128.42,42.6996]
[1726680267326,0.249578,128.48,128.42,34.9129]
[1726680267701,0.249578,128.48,128.44,7.7856]
[1726680268597,8.032878,128.48,128.44,7.7856]
[1726680268828,20.0,128.47,128.44,7.7856]
[1726680269114,20.0,128.47,128.42,34.9129]
[1726680269115,20.0,128.47,128.43,7.19295273]
[1726680269322,0.249578,128.48,128.47,7.7839]
[1726680269530,0.249578,128.48,128.46,27.2448]
[1726680269730,0.249578,128.48,128.43,25.7287]
[1726680270031,0.249578,128.48,128.44,7.7856]
[1726680270702,20.249578,128.48,128.45,7.785]
[1726680270910,0.249578,128.48,128.45,7.785]
[1726680271717,0.249578,128.48,128.46,7.7839]
[1726680272317,0.249578,128.48,128.45,27.247]
[1726680274647,0.249578,128.48,128.46,7.7843]
[1726680277617,0.249578,128.48,128.45,19.4621]
[1726680277824,0.249578,128.48,128.47,13.9056]
[1726680281322,0.249578,128.48,128.47,33.3653]
[1726680284613,0.249578,128.48,128.47,34.9216252]
[1726680285826,0.249578,128.48,128.47,33.3653]
[1726680286216,0.249578,128.48,128.47,34.92162257]
[1726680287437,0.249578,128.48,128.47,33.3653]
[1726680287631,0.249578,128.48,128.47,34.92162495]
[1726680287932,0.249578,128.48,128.47,33.3653]
[1726680288142,0.249578,128.48,128.47,46.10607577]
[1726680290143,0.249578,128.48,128.47,70.25942951]
[1726680290721,0.249578,128.48,128.47,68.70310562]
[1726680293124,0.249578,128.48,128.47,70.25907219]
[1726680293321,0.249578,128.48,128.47,68.70310562]
[1726680294353,0.249578,128.48,128.47,33.3653]
[1726680295322,0.249578,128.48,128.47,44.54975162]
[1726680295841,0.249578,128.48,128.47,44.80073162]
[1726680297142,0.249578,128.48,128.47,68.57761562]
[1726680297449,0.249578,128.48,128.47,70.13375816]
[1726680297738,0.249578,128.48,128.47,68.70310562]
[1726680300647,0.249578,128.48,128.47,70.25915167]
[1726680301240,0.249578,128.48,128.47,68.70310562]
[1726680301945,4.0,128.5,128.49,51.392754]
[1726680302249,4.0,128.5,128.49,62.57720562]
[1726680302419,4.0,128.5,128.49,78.34990562]
[1726680303038,0.249578,128.51,128.5,38.325854]
[1726680303232,0.249578,128.51,128.5,49.51030562]
[1726680303435,0.249578,128.55,128.54,27.35419]
[1726680303633,0.249578,128.55,128.54,38.53864162]
[1726680303851,0.249578,128.55,128.54,27.2287]
[1726680316456,0.249578,128.55,128.54,40.09408532]
[1726680317057,0.249578,128.55,128.54,27.2287]
[1726680319236,0.249578,128.55,128.54,19.4491]
[1726680319468,0.249578,128.55,128.53,7.7801]
[1726680320136,0.249578,128.55,128.54,7.7796]
[1726680328340,0.249578,128.55,128.54,19.08954162]
[1726680329347,0.249578,128.55,128.54,7.90509]
[1726680333645,0.249578,128.55,128.54,7.7796]
[1726680334869,0.249578,128.55,128.54,9.46056647]
[1726680335470,0.249578,128.55,128.54,7.90509]
[1726680339061,0.249578,128.55,128.54,7.7796]
[1726680344068,0.249578,128.55,128.54,44.67280345]
[1726680344256,0.249578,128.55,128.54,82.59199216]
[1726680345164,7.8e-05,128.55,128.54,81.03659433]
[1726680346461,7.8e-05,128.55,128.54,77.08497136]
[1726680346763,7.8e-05,128.55,128.54,81.03548674]
[1726680346971,0.249578,128.59,128.58,66.1065]
[1726680347180,0.249578,128.59,128.58,77.54193162]
[1726680348187,0.249578,128.59,128.58,101.44430562]
[1726680348779,13.63119081,128.65,128.62,27.2119]
[1726680348983,0.249578,128.67,128.62,62.54970562]
[1726680349282,0.249578,128.67,128.62,27.33739]
[1726680350280,0.249578,128.67,128.62,27.2119]
[1726680354680,8.021378,128.67,128.62,27.2119]
[1726680355268,24.1471,128.66,128.62,27.2119]
[1726680358483,16.3745,128.66,128.62,27.2119]
[1726680359683,20.249578,128.67,128.62,28.76645432]
[1726680359863,0.249578,128.67,128.62,38.39635162]
[1726680360170,0.249578,128.67,128.62,27.2119]
[1726680362091,0.249578,128.67,128.62,64.10411601]
[1726680362774,0.249578,128.67,128.62,70.28911601]
[1726680363092,0.249578,128.67,128.66,27.2034]
[1726680363318,0.249578,128.67,128.66,62.54120562]
[1726680363789,0.249578,128.67,128.66,64.09484381]
[1726680364200,0.249578,128.67,128.66,62.54120562]
[1726680368885,0.249578,128.67,128.66,27.45438]
[1726680369193,0.249578,128.67,128.66,38.63883162]
[1726680371803,0.249578,128.67,128.66,64.09505169]
[1726680373203,0.249578,128.67,128.66,62.54120562]
[1726680374874,0.249578,128.67,128.66,84.35030562]
[1726680376699,0.249578,128.67,128.66,27.2034]
[1726680376902,0.249578,128.67,128.66,38.38785162]
[1726680377896,0.249578,128.67,128.66,38.51334162]
[1726680378117,0.249578,128.67,128.66,51.105774]
[1726680378303,0.249578,128.67,128.66,51.356754]
[1726680378490,0.249578,128.67,128.66,62.54120562]
[1726680381893,0.249578,128.67,128.66,64.09478154]
[1726680383012,7.8e-05,128.67,128.66,135.57481106]
[1726680383214,0.249578,128.71,128.66,126.24890562]
[1726680383416,0.249578,128.71,128.7,62.53280562]
[1726680383721,0.249578,128.71,128.7,64.08607488]
[1726680384224,0.249578,128.71,128.7,62.53280562]
[1726680385303,0.249578,128.71,128.7,64.08609135]
[1726680385612,0.249578,128.71,128.7,62.53280562]
[1726680388101,7.8e-05,128.71,128.7,64.08609352]
[1726680389703,7.8e-05,128.71,128.7,62.53280562]
[1726680390819,7.8e-05,128.71,128.7,64.0859398]
[1726680391124,7.8e-05,128.71,128.7,62.53280562]
[1726680392530,7.8e-05,128.71,128.7,27.195]
[1726680393917,7.8e-05,128.71,128.7,27.44598]
[1726680396228,7.8e-05,128.71,128.7,38.63043162]
[1726680396926,7.8e-05,128.71,128.7,62.53280562]
[1726680400426,7.8e-05,128.71,128.7,27.32049]
[1726680402127,7.8e-05,128.71,128.7,27.44598]
[1726680404707,7.8e-05,128.71,128.7,27.32049]
[1726680407940,7.8e-05,128.71,128.7,40.18374117]
[1726680409136,7.8e-05,128.71,128.7,38.63043162]
[1726680410312,7.8e-05,128.71,128.7,27.44598]
[1726680410717,7.8e-05,128.71,128.7,27.195]
[1726680411016,7.8e-05,128.71,128.68,7.771]
[1726680411211,7.769578,128.71,128.67,27.1996]
[1726680411427,7.8e-05,128.71,128.68,7.7711]
[1726680412134,7.8e-05,128.71,128.69,20.98027076]
[1726680412312,7.8e-05,128.71,128.7,7.77]
[1726680412926,7.8e-05,128.71,128.7,7.89549]
[1726680417535,7.8e-05,128.71,128.7,8.02098]
[1726680418143,7.8e-05,128.71,128.7,31.797864]
[1726680419748,7.8e-05,128.71,128.7,42.98231562]
[1726680420524,7.8e-05,128.71,128.7,31.797864]
[1726680422225,7.8e-05,128.71,128.7,7.89549]
[1726680422447,7.8e-05,128.71,128.69,27.1967]
[1726680422650,7.8e-05,128.71,128.7,7.77]
[1726680427034,7.8e-05,128.71,128.69,19.4264]
[1726680428127,7.8e-05,128.71,128.69,27.1969]
[1726680430151,7.8e-05,128.71,128.7,9.32383578]
[1726680431657,7.8e-05,128.71,128.7,7.77]
[1726680431850,7.8e-05,128.71,128.69,27.1967]
[1726680432349,7.8e-05,128.71,128.66,19.4299]
[1726680432558,7.7706,128.69,128.66,19.4299]
[1726680432737,7.7701,128.7,128.66,27.2022]
[1726680433658,16.3582,128.7,128.63,19.4343]
[1726680433948,16.3582,128.7,128.66,7.7722]
[1726680434152,16.3582,128.7,128.67,7.7716]
[1726680434358,16.3582,128.7,128.68,7.7712]
[1726680434854,7.8e-05,128.71,128.69,7.7706]
[1726680435060,7.8e-05,128.71,128.69,19.4263]
[1726680435238,7.8e-05,128.71,128.7,9.32378005]
[1726680435439,7.8e-05,128.71,128.7,7.77]
[1726680438847,7.8e-05,128.71,128.7,9.32379102]
[1726680439267,7.8e-05,128.71,128.7,7.77]
[1726680441350,7.8e-05,128.71,128.7,9.32372096]
[1726680442363,7.8e-05,128.71,128.7,7.77]
[1726680443262,7.8e-05,128.71,128.7,9.32361012]
[1726680445752,7.8e-05,128.71,128.7,9.44892708]
[1726680446946,7.8e-05,128.71,128.7,9.57441708]
[1726680448960,7.8e-05,128.71,128.7,37.42295077]
[1726680449838,7.8e-05,128.71,128.7,37.42271723]
[1726680452549,7.8e-05,128.71,128.7,35.86951369]
[1726680453096,7.8e-05,128.71,128.7,35.86850165]
[1726680453391,7.8e-05,128.71,128.7,11.71514765]
[1726680454776,7.8e-05,128.71,128.7,11.84063765]
[1726680455082,7.8e-05,128.71,128.7,11.96612765]
[1726680455703,7.8e-05,128.71,128.7,13.51951697]
[1726680455862,7.8e-05,128.71,128.7,11.96612765]
[1726680456066,7.8e-05,128.71,128.7,8.02098]
[1726680456288,7.8e-05,128.71,128.7,33.47673902]
[1726680456495,7.8e-05,128.71,128.7,31.923354]
[1726680456985,7.8e-05,128.71,128.7,35.86906183]
[1726680459307,7.8e-05,128.71,128.7,7.89549]
[1726680459674,7.8e-05,128.71,128.7,11.84120467]
[1726680460094,7.8e-05,128.71,128.7,7.89549]
[1726680468104,7.8e-05,128.71,128.7,7.77]
[1726680469592,7.8e-05,128.71,128.7,9.44911408]
[1726680469908,7.8e-05,128.71,128.7,8.02098]
[1726680470809,7.8e-05,128.71,128.7,31.923354]
[1726680474316,7.8e-05,128.71,128.7,47.01357278]
[1726680475506,7.8e-05,128.71,128.7,48.56683959]
[1726680475888,7.8e-05,128.71,128.7,114.49393959]
[1726680476094,7.8e-05,128.71,128.7,114.49366079]
[1726680476295,7.8e-05,128.71,128.7,112.94067278]
[1726680477014,7.8e-05,128.71,128.7,108.99484597]
[1726680477200,7.8e-05,128.71,128.7,112.93963127]
[1726680477402,0.249578,128.75,128.7,112.93963127]
[1726680477403,0.249578,128.75,128.74,51.339754]
[1726680477600,0.249578,128.75,128.74,66.42893127]
[1726680477992,0.249578,128.75,128.74,70.37314541]
[1726680478204,0.249578,128.75,128.74,55.28396814]
[1726680478400,0.249578,128.75,128.74,56.83686684]
[1726680478599,0.249578,128.75,128.74,52.8926527]
[1726680478914,0.249578,128.75,128.74,56.83686133]
[1726680479211,0.249578,128.75,128.74,55.28396263]
[1726680479890,0.249578,128.75,128.74,51.339754]
[1726680480326,0.249578,128.75,128.74,27.1864]
[1726680485388,0.249578,128.75,128.74,27.31189]
[1726680488694,0.249578,128.75,128.74,28.86487521]
[1726680489017,0.249578,128.75,128.74,52.89273921]
[1726680489223,0.249578,128.75,128.74,64.03713118]
[1726680490313,0.249578,128.75,128.74,67.98110086]
[1726680491024,0.249578,128.78,128.77,7.7657]
[1726680491237,0.249578,128.78,128.77,156.80292]
[1726680491418,0.249578,128.78,128.77,161.26411565]
[1726680492098,7.8e-05,128.78,128.77,157.32014597]
[1726680492517,7.8e-05,128.78,128.77,177.06522712]
[1726680495431,0.249578,128.82,128.79,50.0]
[1726680495628,0.249578,128.82,128.81,101.28624597]
[1726680496508,0.249578,128.82,128.81,90.141854]
[1726680498318,0.249578,128.82,128.81,66.23948]
[1726680498908,0.249578,128.82,128.81,27.42268]
[1726680499121,0.249578,128.82,128.81,27.1717]
[1726680502303,0.249578,128.82,128.81,19.4084]
[1726680502512,0.249578,128.82,128.79,7.7642]
[1726680502834,15.776178,128.82,128.79,7.7642]
[1726680503029,15.776178,128.82,128.78,27.1766]
[1726680503030,23.539078,128.82,128.78,27.1766]
[1726680507133,23.539078,128.82,128.78,19.4116]
[1726680507344,20.0,128.81,128.75,19.4165]
[1726680507634,7.7646,128.79,128.75,27.1833]
[1726680508910,7.7652,128.78,128.75,19.4165]
[1726680509631,7.7652,128.78,128.75,27.1834]
[1726680509831,7.7658,128.77,128.72,19.4206]
[1726680510018,44.2771,128.78,128.74,7.7671]
[1726680510221,36.5118,128.78,128.74,19.4188]
[1726680510524,16.5118,128.78,128.75,1.55312465]
[1726680510840,16.5118,128.78,128.76,7.7663]
[1726680512610,16.5118,128.78,128.75,7.7667]
[1726680513412,16.5118,128.78,128.76,7.7662]
[1726680514530,16.5118,128.78,128.75,7.7668]
[1726680516145,16.5118,128.78,128.74,19.4188]
[1726680516313,7.7658,128.77,128.74,19.4188]
[1726680516518,16.5118,128.78,128.74,19.4188]
[1726680516739,24.2773,128.78,128.74,27.1863]
[1726680518139,7.7658,128.77,128.74,27.1863]
[1726680518347,7.7658,128.77,128.74,19.4188]
[1726680520050,16.5118,128.78,128.74,27.1863]
[1726680520051,24.2772,128.78,128.74,27.1863]
[1726680523150,7.7659,128.77,128.74,19.4188]
[1726680525047,16.5118,128.78,128.69,0.249578]
[1726680525229,7.7673,128.75,128.72,7.7687]
[1726680525630,7.7666,128.76,128.72,7.7687]
[1726680525842,7.7671,128.75,128.72,7.7687]
[1726680526240,7.7665,128.76,128.72,7.7687]
[1726680529649,23.902374,128.77,128.72,7.7687]
[1726680529650,7.766,128.77,128.73,7.7681]
[1726680529829,20.0,128.76,128.74,7.7674]
[1726680530228,20.0,128.76,128.73,7.7679]
[1726680531477,20.0,128.76,128.72,27.1903]
[1726680531478,7.7664,128.76,128.72,27.1903]
[1726680535652,20.0,128.77,128.72,19.4218]
[1726680535859,27.766,128.77,128.74,7.7675]
[1726680536560,20.0,128.77,128.74,7.7675]
[1726680540344,20.0,128.79,128.75,1.55336392]
[1726680540544,7.7643,128.8,128.77,7.7656]
[1726680541448,7.7643,128.8,128.76,27.1814]
[1726680542042,7.7643,128.8,128.77,7.7656]
[1726680542259,20.0,128.8,128.78,7.7651]
[1726680542468,20.0,128.8,128.77,7.7655]
[1726680543559,27.7641,128.8,128.76,27.1813]
[1726680543743,7.7641,128.8,128.76,27.1813]
[1726680549274,7.7646,128.79,128.76,27.1813]
[1726680551986,20.0,128.8,128.78,19.4129]
[1726680552281,20.0,128.8,128.78,27.1778]
[1726680552664,20.249578,128.82,128.78,19.4129]
[1726680553067,0.249578,128.82,128.78,19.4129]
[1726680553284,8.012378,128.82,128.78,27.1778]
[1726680554561,0.249578,128.82,128.79,7.7645]
[1726680555053,0.249578,128.82,128.78,19.4129]
[1726680555054,0.249578,128.82,128.8,9.31670292]
[1726680555387,0.249578,128.82,128.81,7.7633]
[1726680560061,0.249578,128.82,128.81,9.56657901]
[1726680560273,0.249578,128.82,128.81,24.67367901]
[1726680560882,0.249578,128.82,128.81,63.49047901]
[1726680561058,0.249578,128.82,128.81,96.98494597]
[1726680562761,0.249578,128.82,128.81,85.840554]